fUST/lending_fUST_20240621
["ID","MTS","AMOUNT","RATE_DAILY","PERIOD"]
[329987106,1718899542186,-168.213117,0.00021096,2]
[329987107,1718899542211,-165.3336881,0.00038434,2]
[329987108,1718899542235,-1499.999999,0.0004,4]
[329987109,1718899542260,-151.0,0.00052,120]
[329987110,1718899542285,-700.0,0.00052969,15]
[329987111,1718899542309,-162.0,0.0005297,62]
[329987112,1718899542332,-335.0,0.0005297,62]
[329987113,1718899542505,-150.5,0.0005297,62]
[329987114,1718899542540,-150.89,0.0005297,62]
[329987115,1718899542563,-150.5,0.0005297,62]
[329987116,1718899542585,-247.0,0.0005297,62]
[329987117,1718899542606,-150.95,0.0005297,62]
[329987118,1718899542629,-278.0,0.0005297,62]
[329987119,1718899542649,-335.0,0.0005298,62]
[329987120,1718899542670,-150.5,0.0005298,62]
[329987121,1718899542690,-162.0,0.0005298,62]
[329987122,1718899542710,-150.5,0.0005298,62]
[329987123,1718899542730,-150.5,0.0005298,62]
[329987124,1718899542750,-247.0,0.0005298,62]
[329987125,1718899542774,-150.5,0.0005298,62]
[329987126,1718899542794,-278.0,0.0005298,62]
[329987127,1718899542813,-335.0,0.0005299,62]
[329987128,1718899542832,-162.0,0.0005299,62]
[329987129,1718899542853,-150.5,0.0005299,62]
[329987130,1718899542875,-150.5,0.0005299,62]
[329987131,1718899542897,-150.5,0.0005299,62]
[329987132,1718899542918,-247.0,0.0005299,62]
[329987133,1718899542937,-150.5,0.0005299,62]
[329987134,1718899542956,-278.0,0.0005299,62]
[329987135,1718899542977,-4277.06,0.0005299,3]
[329987136,1718899542996,-4032.15,0.0005299,3]
[329987137,1718899543017,-255.97006706,0.00052999,120]
[329987138,1718899543037,-365.67152437,0.00052999,120]
[329987139,1718899543056,-519.62107553,0.00053,120]
[329987140,1718899627110,-166.852139,0.00038004,2]
[329987141,1718899627132,-166.852139,0.00043185,2]
[329987142,1718899627152,-153.0,0.00044886,2]
[329987143,1718899627171,-153.0,0.00044886,2]
[329987144,1718899627191,-153.0,0.00044886,2]
[329987145,1718899627211,-151.0,0.000525,120]
[329987146,1718899627230,-151.0,0.000528,120]
[329987147,1718899627249,-754.17116165,0.0005299,3]
[329987148,1718899630145,-2605.94883835,0.0005299,3]
[329987149,1718899630167,-346.0,0.00052999,15]
[329987150,1718899630188,-4958.51332308,0.00053,120]
[329987151,1718899631095,-497.80957049,0.00053,120]
[329987152,1718899653100,-470.855467,0.00049,120]
[329987153,1718899816336,168.58499966,0.0003,30]
[329987181,1718899833743,-383.7998292,0.00049,120]
[329987313,1718899838232,-417.48770309,0.00049,120]
[329987314,1718899838243,-227.96747588,0.00049,2]
[329987315,1718899838256,-339.79260943,0.0005289,2]
[329987316,1718899838267,-2800.1,0.0005299,3]
[329987317,1718899838279,-325.36437078,0.0005299,3]
[329987318,1718899838315,-2008.05562922,0.0005299,3]
[329987319,1718899838325,-1944.52,0.0005299,3]
[329987320,1718899838335,-173355.86271344,0.00053,120]
[329987380,1718899843355,-3670.02094181,0.0005298,120]
[329987387,1718899843801,-23617.91234304,0.0005298,120]
[329989557,1718900759173,-165.335328,0.00021096,2]
[329989558,1718900759192,-166.713034,0.00024571,2]
[329989559,1718900759214,-178.270507,0.00025162,2]
[329989560,1718900759235,-250.0,0.00025162,2]
[329989561,1718900759257,-226.2066056,0.00025609,2]
[329989562,1718900759280,-166.713034,0.00025687,2]
[329989563,1718900759300,-1308.54861151,0.00026712,2]
[329989564,1718900759320,-323.32697789,0.00026713,2]
[329989565,1718900759340,-287.94452,0.00026802,2]
[329989566,1718900759361,-500.0,0.00026802,2]
[329989567,1718900759381,-300.0,0.00026802,2]
[329989568,1718900759401,-166.713034,0.00026804,2]
[329989569,1718900759423,-300.0,0.0002681,2]
[329989570,1718900759442,-33162.91037631,0.00026812,2]
[329989571,1718900759460,-11112.05682486,0.00026812,2]
[329989572,1718900759478,-770.78940879,0.00026813,2]
[329989574,1718900825202,-300.0,0.00026808,2]
[329989575,1718900825221,-1393.11395485,0.00026809,2]
[329989576,1718900833104,-192.74405981,0.00026808,2]
[329989577,1718900840095,-330.6061047,0.00026017,2]
[329989578,1718900840120,-107.25594019,0.00026808,2]
[329989579,1718900840140,-1391.43308215,0.00026809,2]
[329989580,1718900841152,-846.68759991,0.00026809,2]
[329989581,1718900851101,-7480.82218795,0.00026809,2]
[329989582,1718900851120,-1308.80475758,0.00026809,2]
[329989583,1718900851140,-5761.40557791,0.00026813,2]
[329989584,1718900851160,-1454.90399122,0.00026813,2]
[329989585,1718900851180,-202.09824849,0.00026813,2]
[329989586,1718900851199,-16200.0,0.00026813,2]
[329989587,1718900851219,-154.79103211,0.00026813,2]
[329989588,1718900851241,-166.713034,0.0002792,2]
[329989589,1718900851261,-300.0,0.00029489,2]
[329989590,1718900851280,-350.22485764,0.000325,30]
[329989591,1718900851300,-154.94537953,0.000325,4]
[329989592,1718900851320,-323.32697786,0.00033255,2]
[329989593,1718900851342,-208.0770827,0.00039716,2]
[329989594,1718900851362,-323.32697786,0.00039796,2]
[329989595,1718900851383,-151.0,0.00042,30]
[329989596,1718900851404,-153.0,0.00045209,2]
[329989597,1718900851424,-323.32697786,0.00046338,2]
[329989598,1718900851443,-163.0,0.00047,90]
[329989599,1718900851463,-151.0,0.000488,120]
[329989600,1718900851483,-151.0,0.000488,120]
[329989601,1718900851503,-163.0,0.00048904,90]
[329989602,1718900851523,-151.0,0.00049,120]
[329989603,1718900851542,-151.0,0.000499,120]
[329989604,1718900851562,-154.78330338,0.0005,30]
[329989605,1718900851585,-151.0,0.0005,120]
[329989606,1718900851605,-288.274884,0.0005,120]
[329989607,1718900851624,-151.0,0.0005,120]
[329989608,1718900851643,-151.0,0.0005,30]
[329989609,1718900851667,-165.335328,0.00050068,2]
[329989610,1718900851688,-204.11253251,0.000509,4]
[329989611,1718900851707,-4713.66823669,0.00051998,2]
[329989612,1718900851727,-151.0,0.00052,120]
[329989613,1718900851746,-24081.65343919,0.00052076,4]
[329989614,1718900851768,-4713.66823669,0.00052077,2]
[329989615,1718900851789,-4713.66823669,0.00052357,2]
[329989616,1718900851809,-263.68097244,0.00052487,120]
[329989617,1718900851831,-1716.75,0.0005249,3]
[329989618,1718900851850,-1430.63,0.0005249,3]
[329989619,1718900851871,-216.9835311,0.00052493,2]
[329989620,1718900851891,-7352.83166202,0.00052499,4]
[329989621,1718900851915,-31059.86361458,0.000525,30]
[329989624,1718900950237,-284.850446,0.00020996,2]
[329989625,1718900950261,-169.9393638,0.00021096,2]
[329989626,1718900950283,-300.0,0.00024515,2]
[329989627,1718900950306,-3171.87509951,0.00024516,30]
[329989629,1718900962127,-15785.26850049,0.00024516,30]
[329989630,1718900964141,-2376.38583228,0.00026812,2]
[329989685,1718901033273,-251.68166,0.00026363,2]
[329989687,1718901033283,-300.0,0.00026807,2]
[329989689,1718901033292,-300.0,0.00026807,2]
[329989691,1718901033300,-630.03030389,0.00026807,2]
[329989693,1718901033309,-9555.19987141,0.00026808,2]
[329989695,1718901033321,-6499.23575472,0.00026808,2]
[329989697,1718901033331,-16054.43562613,0.00026808,2]
[329989699,1718901033340,-500.0,0.00026811,2]
[329989701,1718901033349,-500.0,0.00026811,2]
[329989703,1718901033358,-253.30762925,0.00026811,2]
[329989705,1718901033367,-593.21185391,0.00026811,2]
[329989707,1718901033376,-226.14041204,0.00026812,2]
[329989709,1718901033385,-181.51786119,0.00026812,2]
[329989711,1718901033394,-171.96822058,0.00026812,2]
[329989713,1718901033404,-41193.23544608,0.00026812,7]
[329989837,1718901038514,-500.0,0.00026807,2]
[329989838,1718901038525,-500.0,0.00026807,2]
[329989839,1718901038535,-500.0,0.00026807,2]
[329989840,1718901038545,-500.0,0.00026807,2]
[329989841,1718901038561,-500.0,0.00026807,2]
[329989843,1718901038571,-446.65465448,0.00026807,2]
[329989845,1718901038581,-20901.53233197,0.00026812,7]
[329989847,1718901038592,-457.55514475,0.00026812,2]
[329989848,1718901038602,-155.00219471,0.00026812,2]
[329989850,1718901038612,-154.79103211,0.00026812,2]
[329989852,1718901038622,-171.96822058,0.00026812,2]
[329989853,1718901038632,-435.149114,0.00027397,2]
[329989855,1718901038641,-1304.64380234,0.00028887,2]
[329989857,1718901038652,-420.0,0.00028987,2]
[329989859,1718901038663,-156.49979751,0.00031251,4]
[329989860,1718901038673,-1022.5311541,0.00037301,2]
[329989861,1718901038683,-162.68460589,0.00039287,7]
[329989862,1718901038693,-251.68166,0.00039544,2]
[329989863,1718901038704,-162.68460589,0.00045015,30]
[329989864,1718901038714,-162.68460589,0.00046909,30]
[329989865,1718901038724,-152.73828047,0.00047245,30]
[329989866,1718901038735,-162.68460589,0.00047267,30]
[329989867,1718901038745,-4758.31,0.0005039,3]
[329989868,1718901038755,-1406.39396162,0.000504,4]
[329989869,1718901038765,-8206.85972322,0.00052,120]
[329989870,1718901038776,-153.0,0.00052027,2]
[329989871,1718901038785,-153.0,0.00052027,2]
[329989872,1718901038795,-153.0,0.00052027,2]
[329989873,1718901038805,-153.0,0.00052027,2]
[329989874,1718901038815,-153.0,0.00052164,2]
[329989875,1718901038825,-153.0,0.00052164,2]
[329989876,1718901038835,-177.35785041,0.000524,2]
[329989877,1718901038846,-162.68460589,0.00052401,60]
[329989878,1718901038856,-4935.10428711,0.00052471,2]
[329989879,1718901038866,-150.0,0.00052474,2]
[329989880,1718901038877,-4901.88777468,0.00052498,4]
[329989881,1718901038887,-7094.13638542,0.000525,30]
[329989882,1718901038897,-10000.0,0.000525,60]
[329989883,1718901038907,-729.99934827,0.000525,3]
[329989884,1718901038917,-177.35785037,0.0005252,2]
[329989885,1718901038926,-177.35785037,0.0005264,2]
[329989886,1718901038936,-150.0,0.00052728,2]
[329989887,1718901038946,-4935.10428711,0.00052749,2]
[329989888,1718901038956,-177.35785037,0.0005276,2]
[329989889,1718901038972,-361.21026356,0.0005279,3]
[329989890,1718901038994,-1798.75826366,0.0005279,3]
[329989891,1718901039007,-335.30147278,0.0005279,3]
[329989892,1718901039024,-707.639195,0.00052795,2]
[329989893,1718901039033,-50000.0,0.000528,120]
[329989894,1718901039043,-177.35785037,0.0005288,2]
[329989895,1718901039055,-32406.94885841,0.000529,120]
[329989896,1718901039073,-8876.62114159,0.000529,120]
[329989897,1718901039083,-150.5,0.00052956,62]
[329989898,1718901039093,-150.5,0.00052966,62]
[329989899,1718901039103,-150.5,0.00052976,62]
[329989900,1718901039114,-18111.26577743,0.0005298,120]
[329989901,1718901039124,-4058.77223748,0.00052985,4]
[329989902,1718901039135,-153.0,0.00052986,2]
[329989903,1718901039146,-153.0,0.00052986,2]
[329989904,1718901039157,-153.0,0.00052986,2]
[329989905,1718901039167,-153.0,0.00052986,2]
[329989906,1718901039178,-153.0,0.00052986,2]
[329989907,1718901039188,-153.0,0.00052986,2]
[329989908,1718901039198,-153.0,0.00052986,2]
[329989909,1718901039209,-153.0,0.00052986,2]
[329989910,1718901039219,-153.0,0.00052986,2]
[329989911,1718901039230,-153.0,0.00052986,2]
[329989912,1718901039241,-153.0,0.00052986,2]
[329989913,1718901039251,-153.0,0.00052986,2]
[329989914,1718901039262,-153.0,0.00052986,2]
[329989915,1718901039273,-153.0,0.00052986,2]
[329989916,1718901039283,-153.0,0.00052986,2]
[329989917,1718901039293,-153.0,0.00052986,2]
[329989918,1718901039304,-4063.0283203,0.00052989,4]
[329989919,1718901039315,-3942.22534111,0.00052989,4]
[329989920,1718901039325,-3942.22534111,0.00052989,4]
[329989921,1718901039335,-1954.09245061,0.00052999,4]
[329989922,1718901039345,-64730.86101538,0.00052999,2]
[329989923,1718901039355,-20820.90331746,0.00053,120]
[329989924,1718901039365,-200.0,0.00053168,62]
[329989925,1718901039375,-330.0,0.00053168,62]
[329989926,1718901039386,-173.0,0.00053168,62]
[329989927,1718901039396,-150.5,0.00053168,62]
[329989928,1718901039406,-235.0,0.00053168,62]
[329989929,1718901039417,-938.0,0.00053168,62]
[329989930,1718901039427,-200.0,0.00053178,62]
[329989931,1718901039436,-330.0,0.00053178,62]
[329989932,1718901039557,-173.0,0.00053178,62]
[329989933,1718901039567,-150.5,0.00053178,62]
[329989934,1718901039577,-235.0,0.00053178,62]
[329989935,1718901039588,-938.0,0.00053178,62]
[329989936,1718901039597,-620.09508713,0.00053187,4]
[329989937,1718901039607,-200.0,0.00053188,62]
[329989938,1718901039617,-330.0,0.00053188,62]
[329989939,1718901039627,-173.0,0.00053188,62]
[329989940,1718901039637,-150.5,0.00053188,62]
[329989941,1718901039647,-235.0,0.00053188,62]
[329989942,1718901039657,-938.0,0.00053188,62]
[329989943,1718901039667,-3033.85644927,0.00053198,4]
[329989944,1718901039676,-155.35709596,0.00053234,4]
[329989945,1718901039686,-150.0,0.00053235,2]
[329989946,1718901039696,-4935.10428711,0.00053355,2]
[329989947,1718901039706,-550.14943667,0.00053433,60]
[329989948,1718901039717,-4935.10428712,0.00053434,2]
[329989949,1718901039727,-162.68460593,0.00054139,60]
[329989950,1718901039736,-620.86787184,0.000543,61]
[329989951,1718901039747,-173.35286256,0.000543,61]
[329989952,1718901039757,-8866.0,0.000543,120]
[329989953,1718901039772,-3197.45065254,0.00054665,4]
[329989954,1718901039783,-2000.0,0.00054666,2]
[329989955,1718901039794,-309.81958574,0.00054756,30]
[329989956,1718901039805,-155.54849025,0.00054757,4]
[329989957,1718901039816,-2217.12889542,0.00054757,4]
[329989958,1718901039827,-208.64418178,0.00054758,4]
[329989959,1718901039837,-236.21354409,0.00054758,4]
[329989960,1718901039849,-219.87653343,0.00054758,4]
[329989961,1718901039860,-427.16819492,0.00054758,2]
[329989962,1718901039871,-191.8060336,0.00054758,4]
[329989963,1718901039882,-3036.62286761,0.00054758,4]
[329989964,1718901039892,-205.0,0.00054759,4]
[329989965,1718901039903,-219.99927777,0.00054759,4]
[329989966,1718901039913,-470.04995089,0.00054759,4]
[329989967,1718901039923,-888.06640989,0.00054759,2]
[329989968,1718901039933,-2088.15576149,0.00054759,40]
[329989969,1718901039943,-258.35644608,0.00054759,4]
[329989970,1718901039954,-3131.8080167,0.00054759,2]
[329989971,1718901039967,-1199.84319457,0.00054759,4]
[329989972,1718901039980,-157.29837644,0.00054759,4]
[329989973,1718901039991,-199.9759406,0.00054759,4]
[329989974,1718901040002,-154.86644948,0.00054759,4]
[329989975,1718901040017,-552.61928461,0.00054759,4]
[329989976,1718901040028,-3129.19830957,0.00054759,4]
[329989977,1718901040040,-201.18562469,0.00054759,4]
[329989978,1718901040050,-176.24496833,0.00054759,4]
[329989979,1718901040061,-156.56028287,0.00054759,4]
[329989980,1718901040072,-1110.7575992,0.00054759,4]
[329989982,1718901040082,-243.35512354,0.00054759,4]
[329989984,1718901040093,-2165.48513935,0.0005476,4]
[329989985,1718901040103,-244.55812679,0.0005476,4]
[329989986,1718901040112,-1650.98904105,0.0005476,4]
[329989987,1718901040123,-244.55812679,0.0005476,4]
[329989988,1718901040133,-2165.48513935,0.0005476,4]
[329989989,1718901040143,-154.79103211,0.0005476,4]
[329989990,1718901040153,-1055.36138159,0.0005476,4]
[329989991,1718901040163,-309.87061294,0.0005476,4]
[329989993,1718901040173,-536.14607846,0.0005476,4]
[329989994,1718901040183,-182.73427143,0.00054761,2]
[329989995,1718901040193,-181.785451,0.00054761,4]
[329989996,1718901040202,-401.69423882,0.00054761,4]
[329989997,1718901040212,-4796.98792228,0.00054761,4]
[329989998,1718901040223,-182.73427143,0.00054761,2]
[329989999,1718901040233,-200.67984235,0.00054761,4]
[329990000,1718901040243,-155.63331947,0.00054761,4]
[329990001,1718901040253,-154.79103211,0.00054761,4]
[329990002,1718901040266,-2064.02846317,0.00054761,4]
[329990003,1718901040276,-302.99284706,0.00054761,4]
[329990004,1718901040285,-154.79103211,0.00054761,4]
[329990005,1718901040295,-267.37594324,0.00054762,4]
[329990006,1718901040305,-252.36203016,0.00054762,4]
[329990008,1718901040316,-156.09516611,0.00054762,4]
[329990009,1718901040326,-155.593646,0.00054762,4]
[329990010,1718901040336,-154.82968734,0.00054762,4]
[329990012,1718901040346,-154.79103211,0.00054762,4]
[329990014,1718901040356,-198.18623907,0.00054762,2]
[329990016,1718901040366,-241.24548025,0.00054762,4]
[329990018,1718901040376,-1834.06860651,0.00054763,4]
[329990019,1718901040387,-1387.21092595,0.00054763,4]
[329990020,1718901040397,-179.31911741,0.00054763,4]
[329990021,1718901040408,-155.69012832,0.00054763,4]
[329990022,1718901040417,-255.88857148,0.00054764,4]
[329990023,1718901040427,-255.88857148,0.00054764,4]
[329990024,1718901040437,-190.87920002,0.00054764,4]
[329990025,1718901040447,-1122.69,0.0005479,120]
[329990026,1718901040457,-377.91202926,0.00054793,4]
[329990027,1718901040467,-292.80957049,0.00054793,4]
[329990028,1718901040477,-500.0,0.00054794,120]
[329990029,1718901040487,-500.0,0.00054794,120]
[329990030,1718901040497,-500.0,0.00054794,120]
[329990031,1718901040507,-500.0,0.00054794,120]
[329990032,1718901040520,-500.0,0.00054794,120]
[329990034,1718901040531,-500.0,0.00054794,120]
[329990036,1718901040541,-502.5812045,0.00054794,120]
[329990038,1718901040550,-584.29218765,0.00054794,120]
[329990040,1718901040561,-644.21,0.00054794,120]
[329990042,1718901040571,-500.0,0.00054794,120]
[329990044,1718901040580,-500.0,0.00054794,120]
[329990045,1718901040590,-241.21671915,0.00054794,120]
[329990046,1718901040600,-406.43010924,0.00054794,120]
[329990047,1718901040610,-500.0,0.00054794,120]
[329990048,1718901040619,-500.0,0.00054794,120]
[329990049,1718901040628,-500.0,0.00054794,120]
[329990050,1718901040638,-511.61106641,0.00054794,120]
[329990051,1718901040649,-500.0,0.00054794,120]
[329990052,1718901040659,-200.0,0.00054794,7]
[329990053,1718901040669,-500.0,0.00054794,120]
[329990054,1718901040679,-500.0,0.00054794,120]
[329990055,1718901040689,-500.0,0.00054794,120]
[329990056,1718901040698,-500.0,0.00054794,120]
[329990057,1718901040709,-507.39892745,0.00054794,20]
[329990058,1718901040719,-500.0,0.00054794,120]
[329990059,1718901040729,-500.0,0.00054794,2]
[329990060,1718901040739,-500.0,0.00054794,120]
[329990061,1718901040750,-500.0,0.00054794,120]
[329990062,1718901040760,-834.97,0.00054794,60]
[329990063,1718901040770,-500.0,0.00054794,120]
[329990064,1718901040780,-500.0,0.00054794,120]
[329990065,1718901040790,-500.0,0.00054794,120]
[329990066,1718901040799,-500.0,0.00054794,120]
[329990067,1718901040810,-500.0,0.00054794,120]
[329990068,1718901040821,-185.11442688,0.00054794,120]
[329990069,1718901040831,-500.0,0.00054794,120]
[329990070,1718901040841,-500.0,0.00054794,2]
[329990071,1718901040851,-500.0,0.00054794,120]
[329990072,1718901040860,-500.0,0.00054794,120]
[329990073,1718901040869,-500.0,0.00054794,120]
[329990074,1718901040880,-500.0,0.00054794,120]
[329990075,1718901040890,-500.0,0.00054794,120]
[329990076,1718901040900,-500.0,0.00054794,120]
[329990077,1718901040909,-1939.57,0.00054794,120]
[329990078,1718901040920,-500.0,0.00054794,120]
[329990079,1718901040929,-500.0,0.00054794,120]
[329990080,1718901040939,-500.0,0.00054794,120]
[329990081,1718901040948,-500.0,0.00054794,120]
[329990082,1718901040958,-500.0,0.00054794,120]
[329990083,1718901040970,-500.0,0.00054794,120]
[329990084,1718901040981,-500.0,0.00054794,120]
[329990085,1718901040993,-500.0,0.00054794,120]
[329990086,1718901041003,-500.0,0.00054794,120]
[329990087,1718901041015,-500.0,0.00054794,120]
[329990088,1718901041024,-500.0,0.00054794,120]
[329990089,1718901041034,-500.0,0.00054794,120]
[329990090,1718901041043,-153.75,0.00054794,120]
[329990091,1718901041053,-500.0,0.00054794,120]
[329990092,1718901041062,-438.70083541,0.00054794,120]
[329990093,1718901041073,-500.0,0.00054794,120]
[329990094,1718901041084,-792.0,0.00054794,120]
[329990095,1718901041095,-500.0,0.00054794,120]
[329990096,1718901041105,-500.0,0.00054794,120]
[329990097,1718901041114,-500.0,0.00054794,120]
[329990098,1718901041124,-824.09713797,0.00054794,120]
[329990099,1718901041133,-500.0,0.00054794,120]
[329990100,1718901041143,-500.0,0.00054794,120]
[329990101,1718901041152,-613.4933,0.00054794,120]
[329990102,1718901041163,-500.0,0.00054794,120]
[329990103,1718901041172,-500.0,0.00054794,120]
[329990104,1718901041181,-500.0,0.00054794,120]
[329990105,1718901041191,-649.0902292,0.00054794,120]
[329990106,1718901041200,-704.21,0.00054794,120]
[329990107,1718901041210,-500.0,0.00054794,120]
[329990108,1718901041219,-500.0,0.00054794,120]
[329990109,1718901041229,-500.0,0.00054794,120]
[329990110,1718901041239,-500.0,0.00054794,120]
[329990111,1718901041248,-500.0,0.00054794,120]
[329990112,1718901041257,-500.0,0.00054794,120]
[329990113,1718901041272,-509.4477301,0.00054794,120]
[329990114,1718901041284,-500.0,0.00054794,120]
[329990115,1718901041294,-500.0,0.00054794,120]
[329990116,1718901041304,-504.22865715,0.00054794,120]
[329990117,1718901041314,-406.1297036,0.00054794,120]
[329990118,1718901041324,-500.0,0.00054794,120]
[329990119,1718901041334,-500.0,0.00054794,120]
[329990120,1718901041344,-508.03708302,0.00054794,120]
[329990121,1718901041353,-500.0,0.00054794,120]
[329990122,1718901041363,-366.48415421,0.00054794,120]
[329990123,1718901041372,-652.78,0.00054794,7]
[329990124,1718901041381,-1165.49,0.00054794,120]
[329990125,1718901041391,-500.0,0.00054794,120]
[329990126,1718901041401,-500.0,0.00054794,120]
[329990127,1718901041411,-500.0,0.00054794,120]
[329990128,1718901041421,-500.0,0.00054794,120]
[329990129,1718901041430,-500.0,0.00054794,120]
[329990130,1718901041440,-500.0,0.00054794,120]
[329990131,1718901041450,-500.0,0.00054794,120]
[329990132,1718901041460,-500.0,0.00054794,120]
[329990133,1718901041469,-500.0,0.00054794,120]
[329990134,1718901041478,-500.0,0.00054794,120]
[329990135,1718901041487,-505.79303844,0.00054794,120]
[329990136,1718901041497,-500.0,0.00054794,120]
[329990137,1718901041506,-500.0,0.00054794,120]
[329990138,1718901041523,-500.0,0.00054794,120]
[329990139,1718901041532,-15527.05,0.00054794,120]
[329990140,1718901041541,-500.0,0.00054794,120]
[329990141,1718901041550,-634.24530655,0.00054794,120]
[329990142,1718901041559,-250.0,0.00054794,120]
[329990143,1718901041568,-944.82,0.00054794,21]
[329990144,1718901041577,-500.0,0.00054794,120]
[329990145,1718901041586,-500.0,0.00054794,120]
[329990146,1718901041595,-1923.31,0.00054794,120]
[329990147,1718901041604,-500.0,0.00054794,120]
[329990148,1718901041613,-500.0,0.00054794,120]
[329990149,1718901041623,-500.0,0.00054794,120]
[329990150,1718901041632,-500.0,0.00054794,120]
[329990151,1718901041642,-500.0,0.00054794,120]
[329990152,1718901041651,-500.0,0.00054794,120]
[329990153,1718901041660,-500.0,0.00054794,120]
[329990154,1718901041669,-500.0,0.00054794,90]
[329990155,1718901041678,-500.0,0.00054794,120]
[329990156,1718901041687,-502.18087187,0.00054794,120]
[329990157,1718901041697,-227.90251125,0.00054794,120]
[329990158,1718901041706,-500.0,0.00054794,120]
[329990159,1718901041715,-500.0,0.00054794,120]
[329990160,1718901041725,-500.0,0.00054794,120]
[329990161,1718901041734,-500.0,0.00054794,120]
[329990162,1718901041744,-500.0,0.00054794,120]
[329990163,1718901041754,-504.28940873,0.00054794,120]
[329990164,1718901041764,-500.0,0.00054794,120]
[329990165,1718901041774,-500.0,0.00054794,120]
[329990166,1718901041783,-500.0,0.00054794,120]
[329990167,1718901041792,-500.0,0.00054794,120]
[329990168,1718901041801,-170.17366001,0.00054794,120]
[329990169,1718901041812,-500.0,0.00054794,7]
[329990170,1718901041821,-500.0,0.00054794,120]
[329990171,1718901041831,-500.0,0.00054794,120]
[329990172,1718901041840,-1684.58,0.00054794,120]
[329990173,1718901041850,-503.07082384,0.00054794,120]
[329990174,1718901041859,-532.52047771,0.00054794,120]
[329990175,1718901041868,-500.0,0.00054794,120]
[329990176,1718901041878,-500.0,0.00054794,120]
[329990177,1718901041887,-500.0,0.00054794,120]
[329990178,1718901041896,-500.0,0.00054794,120]
[329990179,1718901041906,-500.0,0.00054794,120]
[329990180,1718901041915,-500.0,0.00054794,120]
[329990181,1718901041925,-500.0,0.00054794,120]
[329990182,1718901041934,-500.0,0.00054794,120]
[329990183,1718901041943,-500.0,0.00054794,120]
[329990184,1718901041952,-500.0,0.00054794,120]
[329990185,1718901041963,-500.0,0.00054794,120]
[329990186,1718901041976,-7909.71,0.00054794,120]
[329990187,1718901041985,-500.0,0.00054794,120]
[329990188,1718901041995,-1151.77,0.00054794,120]
[329990189,1718901042004,-1151.77,0.00054794,120]
[329990190,1718901042018,-500.0,0.00054794,120]
[329990191,1718901042101,-1151.77,0.00054794,120]
[329990192,1718901042123,-1151.77,0.00054794,120]
[329990193,1718901042132,-1151.77,0.00054794,120]
[329990194,1718901042142,-500.0,0.00054794,120]
[329990195,1718901042151,-777.39,0.00054794,120]
[329990196,1718901042161,-1151.77,0.00054794,120]
[329990197,1718901042170,-1151.77,0.00054794,120]
[329990198,1718901042180,-1151.77,0.00054794,120]
[329990199,1718901042189,-1151.77,0.00054794,120]
[329990200,1718901042198,-1151.77,0.00054794,120]
[329990201,1718901042208,-1151.77,0.00054794,120]
[329990202,1718901042217,-1151.77,0.00054794,120]
[329990203,1718901042226,-1151.77,0.00054794,120]
[329990204,1718901042236,-242.74793433,0.00054794,120]
[329990205,1718901042245,-2787.01,0.00054794,120]
[329990206,1718901042255,-507.53926927,0.00054794,120]
[329990207,1718901042266,-1075.21,0.00054794,120]
[329990208,1718901042275,-500.0,0.00054794,120]
[329990209,1718901042284,-500.0,0.00054794,120]
[329990210,1718901042293,-500.0,0.00054794,120]
[329990211,1718901042303,-500.0,0.00054794,120]
[329990212,1718901042312,-500.0,0.00054794,120]
[329990213,1718901042322,-500.0,0.00054794,120]
[329990214,1718901042332,-432.94595786,0.00054794,120]